[Event "Late-Titled-Tuesday-Blitz-January-23-2024"]
[Site "Chess.com"]
[Date "2024.01.23"]
[Round "3"]
[White "zverr1"]
[Black "Felix-Rose"]
[Result "1-0"]
[WhiteElo "2513"]
[BlackElo "2322"]
[TimeControl "180+1"]
[EndTime "14:28:16 PST"]
[Termination "zverr1 won by resignation"]

1. e4 {[%clk 0:03:00.9]} 1... e5 {[%clk 0:02:59.4]} 2. Nf3 {[%clk 0:03:00.8]}
2... Nc6 {[%clk 0:02:59.7]} 3. Bc4 {[%clk 0:03:01.5]} 3... Nf6 {[%clk
0:02:59.9]} 4. Ng5 {[%clk 0:03:01.7]} 4... d5 {[%clk 0:03:00.1]} 5. exd5 {[%clk
0:03:02.6]} 5... Na5 {[%clk 0:03:00.5]} 6. Bb5+ {[%clk 0:03:03]} 6... c6 {[%clk
0:03:01.3]} 7. dxc6 {[%clk 0:03:03.9]} 7... bxc6 {[%clk 0:03:02.2]} 8. Be2
{[%clk 0:03:04.7]} 8... h6 {[%clk 0:03:00.4]} 9. Nh3 {[%clk 0:03:05]} 9... Bd6
{[%clk 0:02:49]} 10. d3 {[%clk 0:03:04]} 10... Rb8 {[%clk 0:02:44.7]} 11. Nc3
{[%clk 0:03:04]} 11... Bc7 {[%clk 0:02:40.7]} 12. O-O {[%clk 0:03:02.3]} 12...
O-O {[%clk 0:02:40.4]} 13. Kh1 {[%clk 0:03:01.4]} 13... c5 {[%clk 0:02:36.4]}
14. Ng1 {[%clk 0:02:59.6]} 14... Bb7 {[%clk 0:02:31.4]} 15. Bf3 {[%clk
0:02:59.6]} 15... Nc6 {[%clk 0:02:29.7]} 16. Nge2 {[%clk 0:02:58.1]} 16... Nd4
{[%clk 0:02:14.2]} 17. Bxb7 {[%clk 0:02:59]} 17... Rxb7 {[%clk 0:02:12.9]} 18.
Ne4 {[%clk 0:02:50.9]} 18... Nd7 {[%clk 0:02:10.6]} 19. c3 {[%clk 0:02:50.3]}
19... Ne6 {[%clk 0:02:10.4]} 20. Nd2 {[%clk 0:02:32.6]} 20... Nf6 {[%clk
0:02:04.3]} 21. Nc4 {[%clk 0:02:28.1]} 21... Ng4 {[%clk 0:01:54.2]} 22. h3
{[%clk 0:02:10.9]} 22... Qh4 {[%clk 0:01:49.8]} 23. Kg1 {[%clk 0:02:11]} 23...
Nf6 {[%clk 0:01:31.8]} 24. Ng3 {[%clk 0:02:00.9]} 24... Nd5 {[%clk 0:01:15.6]}
25. Qh5 {[%clk 0:01:53.1]} 25... Qxh5 {[%clk 0:01:04.5]} 26. Nxh5 {[%clk
0:01:54]} 26... g6 {[%clk 0:01:04.4]} 27. Ng3 {[%clk 0:01:49.6]} 27... Kg7
{[%clk 0:00:59.9]} 28. Re1 {[%clk 0:01:41.1]} 28... f6 {[%clk 0:00:57.1]} 29.
Nf1 {[%clk 0:01:33.1]} 29... Rd8 {[%clk 0:00:55.8]} 30. Rd1 {[%clk 0:01:30.7]}
30... Ndf4 {[%clk 0:00:54.5]} 31. Bxf4 {[%clk 0:01:15]} 31... Nxf4 {[%clk
0:00:54.3]} 32. Rd2 {[%clk 0:01:00.5]} 32... Rxd3 {[%clk 0:00:47.7]} 33. Rxd3
{[%clk 0:00:56.5]} 33... Nxd3 {[%clk 0:00:47.4]} 34. Rd1 {[%clk 0:00:57.2]}
34... e4 {[%clk 0:00:27.4]} 35. f3 {[%clk 0:00:57.4]} 35... f5 {[%clk
0:00:21.1]} 36. fxe4 {[%clk 0:00:53.5]} 36... fxe4 {[%clk 0:00:22]} 37. Nfd2
{[%clk 0:00:43.3]} 37... Rb8 {[%clk 0:00:11.4]} 38. Nxe4 {[%clk 0:00:41.1]}
38... Nf4 {[%clk 0:00:08.7]} 39. Rd7+ {[%clk 0:00:40]} 39... Kf8 {[%clk
0:00:08.5]} 40. Rxc7 {[%clk 0:00:40.9]} 40... Ne2+ {[%clk 0:00:08.5]} 41. Kh2
{[%clk 0:00:40.5]} 41... Nc1 {[%clk 0:00:09.1]} 42. Nf6 {[%clk 0:00:39]} 1-0

[Event "Late-Titled-Tuesday-Blitz-January-23-2024"]
[Site "Chess.com"]
[Date "2024.01.23"]
[Round "3"]
[White "BozeKat"]
[Black "rikchessmx"]
[Result "0-1"]
[WhiteElo "2013"]
[BlackElo "2380"]
[TimeControl "180+1"]
[EndTime "14:28:19 PST"]
[Termination "rikchessmx won on time"]

1. c4 {[%clk 0:03:00.9]} 1... d5 {[%clk 0:02:59.5]} 2. d4 {[%clk 0:02:54.7]}
2... e6 {[%clk 0:02:58.4]} 3. Nf3 {[%clk 0:02:53.9]} 3... Nf6 {[%clk 0:02:56.9]}
4. e3 {[%clk 0:02:53.9]} 4... c6 {[%clk 0:02:56.7]} 5. Nbd2 {[%clk 0:02:53.4]}
5... Nbd7 {[%clk 0:02:56.1]} 6. Bd3 {[%clk 0:02:53.6]} 6... Bd6 {[%clk
0:02:55.2]} 7. O-O {[%clk 0:02:53.2]} 7... Qe7 {[%clk 0:02:55.5]} 8. e4 {[%clk
0:02:53.9]} 8... dxc4 {[%clk 0:02:55.4]} 9. Nxc4 {[%clk 0:02:53.5]} 9... e5
{[%clk 0:02:54.9]} 10. Nxd6+ {[%clk 0:02:49.2]} 10... Qxd6 {[%clk 0:02:54]} 11.
Re1 {[%clk 0:02:25.3]} 11... O-O {[%clk 0:02:53.1]} 12. Bg5 {[%clk 0:02:20.7]}
12... Re8 {[%clk 0:02:50.6]} 13. Bh4 {[%clk 0:02:16.9]} 13... exd4 {[%clk
0:02:26.3]} 14. Bg3 {[%clk 0:02:02.9]} 14... Qb4 {[%clk 0:02:25.8]} 15. Qc2
{[%clk 0:01:52.6]} 15... Nf8 {[%clk 0:02:14.7]} 16. a3 {[%clk 0:01:49.4]} 16...
Qb6 {[%clk 0:02:14.1]} 17. Bd6 {[%clk 0:01:34.3]} 17... Bg4 {[%clk 0:02:05.4]}
18. Bc5 {[%clk 0:01:30.7]} 18... Qa5 {[%clk 0:02:00.7]} 19. b4 {[%clk
0:01:24.6]} 19... Qc7 {[%clk 0:01:59.7]} 20. Nxd4 {[%clk 0:01:13.3]} 20... Ng6
{[%clk 0:01:59]} 21. Nf5 {[%clk 0:01:00.4]} 21... Rad8 {[%clk 0:01:52.9]} 22.
Ne3 {[%clk 0:00:42.6]} 22... Nf4 {[%clk 0:01:48.9]} 23. Bf1 {[%clk 0:00:27.5]}
23... Nxe4 {[%clk 0:01:45.6]} 24. Nxg4 {[%clk 0:00:20.7]} 24... Nxc5 {[%clk
0:01:39]} 25. bxc5 {[%clk 0:00:20.4]} 25... Nd5 {[%clk 0:01:30.2]} 26. Bc4
{[%clk 0:00:18]} 26... Qf4 {[%clk 0:01:25.6]} 27. Rxe8+ {[%clk 0:00:15.2]} 27...
Rxe8 {[%clk 0:01:25.2]} 28. Bxd5 {[%clk 0:00:12.4]} 28... Qxg4 {[%clk
0:01:22.1]} 29. Bf3 {[%clk 0:00:12]} 29... Qd4 {[%clk 0:01:20.1]} 30. Rd1 {[%clk
0:00:11.6]} 30... Qe5 {[%clk 0:01:14.6]} 31. Qe2 {[%clk 0:00:08.7]} 31... Qb8
{[%clk 0:01:10.9]} 32. Qd3 {[%clk 0:00:07.9]} 32... Qe5 {[%clk 0:01:07.3]} 33.
g3 {[%clk 0:00:03.9]} 33... g6 {[%clk 0:01:05.6]} 34. Qd7 {[%clk 0:00:03.6]}
34... Re7 {[%clk 0:01:03.5]} 35. Qd6 {[%clk 0:00:03.9]} 35... Kg7 {[%clk
0:00:56.5]} 36. Qxe5+ {[%clk 0:00:03.8]} 36... Rxe5 {[%clk 0:00:56.3]} 37. Rd7
{[%clk 0:00:04.1]} 37... Rxc5 {[%clk 0:00:56.1]} 38. Rxb7 {[%clk 0:00:04.5]}
38... Ra5 {[%clk 0:00:56.2]} 39. Rc7 {[%clk 0:00:04.6]} 39... c5 {[%clk
0:00:55.3]} 40. a4 {[%clk 0:00:03.8]} 40... Rxa4 {[%clk 0:00:55.2]} 41. Rxc5
{[%clk 0:00:04.1]} 41... Ra1+ {[%clk 0:00:53.9]} 42. Kg2 {[%clk 0:00:04.1]}
42... a5 {[%clk 0:00:50.7]} 43. Rc7 {[%clk 0:00:04.6]} 43... a4 {[%clk
0:00:43.5]} 44. Bd5 {[%clk 0:00:05.1]} 44... Kf6 {[%clk 0:00:43.1]} 45. Rxf7+
{[%clk 0:00:05]} 45... Ke5 {[%clk 0:00:43.4]} 46. Bc4 {[%clk 0:00:04.4]} 46...
Kd4 {[%clk 0:00:43.2]} 47. Rc7 {[%clk 0:00:04.7]} 47... Rc1 {[%clk 0:00:42.5]}
48. Bg8 {[%clk 0:00:04.9]} 48... Rxc7 {[%clk 0:00:42.1]} 49. Bxh7 {[%clk
0:00:04.7]} 49... a3 {[%clk 0:00:41]} 50. Bg8 {[%clk 0:00:03.6]} 50... Rc4
{[%clk 0:00:40.5]} 0-1

[Event "Late-Titled-Tuesday-Blitz-January-23-2024"]
[Site "Chess.com"]
[Date "2024.01.23"]
[Round "3"]
[White "sergeikim"]
[Black "Alexei_Gubajdullin"]
[Result "0-1"]
[WhiteElo "2416"]
[BlackElo "2603"]
[TimeControl "180+1"]
[EndTime "14:28:21 PST"]
[Termination "Alexei_Gubajdullin won on time"]

1. d4 {[%clk 0:02:55.8]} 1... d5 {[%clk 0:02:59.5]} 2. c4 {[%clk 0:02:56]} 2...
c6 {[%clk 0:02:59.9]} 3. Nf3 {[%clk 0:02:53.2]} 3... Nf6 {[%clk 0:02:59.8]} 4.
Qc2 {[%clk 0:02:53.3]} 4... g6 {[%clk 0:02:54.9]} 5. e3 {[%clk 0:02:53.1]} 5...
Bg7 {[%clk 0:02:55]} 6. Bd3 {[%clk 0:02:53]} 6... O-O {[%clk 0:02:55]} 7. Nbd2
{[%clk 0:02:53.1]} 7... c5 {[%clk 0:02:53.1]} 8. dxc5 {[%clk 0:02:48.3]} 8...
Na6 {[%clk 0:02:53]} 9. a3 {[%clk 0:02:47.9]} 9... Nxc5 {[%clk 0:02:52.3]} 10.
Be2 {[%clk 0:02:47.8]} 10... Bf5 {[%clk 0:02:52.1]} 11. Qd1 {[%clk 0:02:40.9]}
11... Nd3+ {[%clk 0:02:51.6]} 12. Kf1 {[%clk 0:02:40.5]} 12... Ng4 {[%clk
0:02:49.6]} 13. Bxd3 {[%clk 0:02:32.6]} 13... Bxd3+ {[%clk 0:02:49.4]} 14. Kg1
{[%clk 0:02:33.2]} 14... dxc4 {[%clk 0:02:50.3]} 15. Ne1 {[%clk 0:02:25.1]}
15... c3 {[%clk 0:02:48.9]} 16. Qxg4 {[%clk 0:02:18]} 16... cxb2 {[%clk
0:02:47.4]} 17. Bxb2 {[%clk 0:02:17.4]} 17... Bxb2 {[%clk 0:02:46.6]} 18. Rd1
{[%clk 0:02:15.6]} 18... Bf5 {[%clk 0:02:42.9]} 19. Qe2 {[%clk 0:02:14.5]} 19...
Bg7 {[%clk 0:02:19.6]} 20. h3 {[%clk 0:02:00.3]} 20... Qa5 {[%clk 0:02:19.1]}
21. Nef3 {[%clk 0:01:47.8]} 21... Qxa3 {[%clk 0:02:17.6]} 22. Kh2 {[%clk
0:01:48.2]} 22... Qd6+ {[%clk 0:02:16.8]} 23. g3 {[%clk 0:01:44.8]} 23... Qa6
{[%clk 0:02:16]} 24. Qxa6 {[%clk 0:01:38.6]} 24... bxa6 {[%clk 0:02:15.9]} 25.
e4 {[%clk 0:01:38.4]} 25... Bd7 {[%clk 0:02:12]} 26. e5 {[%clk 0:01:37.1]} 26...
Bb5 {[%clk 0:02:11.6]} 27. Rhe1 {[%clk 0:01:34.4]} 27... a5 {[%clk 0:02:09.9]}
28. Ne4 {[%clk 0:01:28.8]} 28... a4 {[%clk 0:02:08.4]} 29. Nc3 {[%clk
0:01:27.4]} 29... Bc6 {[%clk 0:02:08.4]} 30. Nd4 {[%clk 0:01:26.8]} 30... Rfc8
{[%clk 0:02:00.3]} 31. Nxc6 {[%clk 0:01:25.8]} 31... Rxc6 {[%clk 0:01:59.9]} 32.
Nxa4 {[%clk 0:01:25.8]} 32... Rc2 {[%clk 0:01:53.6]} 33. Kg2 {[%clk 0:01:24.4]}
33... Rac8 {[%clk 0:01:50.3]} 34. Rd7 {[%clk 0:01:20.6]} 34... Ra2 {[%clk
0:01:49.4]} 35. Rxa7 {[%clk 0:01:15.1]} 35... Rcc2 {[%clk 0:01:47.8]} 36. Ra8+
{[%clk 0:01:09.2]} 36... Bf8 {[%clk 0:01:47.8]} 37. Rf1 {[%clk 0:01:08.7]} 37...
Re2 {[%clk 0:01:34.1]} 38. Nb6 {[%clk 0:00:49.3]} 38... Rxa8 {[%clk 0:01:33.3]}
39. Nxa8 {[%clk 0:00:49.4]} 39... Rxe5 {[%clk 0:01:33.2]} 40. Nb6 {[%clk
0:00:49.4]} 40... Re2 {[%clk 0:01:31]} 41. Kf3 {[%clk 0:00:47.5]} 41... Ra2
{[%clk 0:01:29.6]} 42. Nd7 {[%clk 0:00:43.8]} 42... Bg7 {[%clk 0:01:29.4]} 43.
Rd1 {[%clk 0:00:43.8]} 43... h5 {[%clk 0:01:26.3]} 44. h4 {[%clk 0:00:43.2]}
44... Bc3 {[%clk 0:01:20.1]} 45. Nc5 {[%clk 0:00:40.6]} 45... e5 {[%clk
0:01:17.3]} 46. Rd8+ {[%clk 0:00:36.1]} 46... Kg7 {[%clk 0:01:16.9]} 47. Rd7
{[%clk 0:00:36.2]} 47... Kf8 {[%clk 0:01:10.4]} 48. Rd8+ {[%clk 0:00:29.4]}
48... Ke7 {[%clk 0:01:10.3]} 49. Rd7+ {[%clk 0:00:28.9]} 49... Ke8 {[%clk
0:01:10.4]} 50. Rb7 {[%clk 0:00:20]} 50... Bd4 {[%clk 0:01:07.3]} 51. Ne4 {[%clk
0:00:20]} 51... f5 {[%clk 0:01:00.9]} 52. Nf6+ {[%clk 0:00:14.1]} 52... Kf8
{[%clk 0:01:00.8]} 53. Nh7+ {[%clk 0:00:09.9]} 53... Ke8 {[%clk 0:01:00.8]} 54.
Nf6+ {[%clk 0:00:10.5]} 54... Kd8 {[%clk 0:01:00.8]} 0-1

[Event "Late-Titled-Tuesday-Blitz-January-23-2024"]
[Site "Chess.com"]
[Date "2024.01.23"]
[Round "3"]
[White "FredddieCroderg"]
[Black "ContrVersia"]
[Result "1-0"]
[WhiteElo "2377"]
[BlackElo "2844"]
[TimeControl "180+1"]
[EndTime "14:28:24 PST"]
[Termination "FredddieCroderg won on time"]

1. d4 {[%clk 0:03:00.9]} 1... Nf6 {[%clk 0:02:59.7]} 2. c4 {[%clk 0:02:59.5]}
2... c5 {[%clk 0:02:59.9]} 3. d5 {[%clk 0:02:59]} 3... e6 {[%clk 0:03:00.3]} 4.
Nc3 {[%clk 0:02:57.9]} 4... exd5 {[%clk 0:03:00.7]} 5. cxd5 {[%clk 0:02:57.2]}
5... d6 {[%clk 0:03:01.2]} 6. e4 {[%clk 0:02:56.5]} 6... g6 {[%clk 0:03:01.6]}
7. f3 {[%clk 0:02:56.5]} 7... Bg7 {[%clk 0:03:01.3]} 8. Bg5 {[%clk 0:02:56.5]}
8... Nbd7 {[%clk 0:02:58.2]} 9. Qd2 {[%clk 0:02:56.4]} 9... O-O {[%clk
0:02:49.7]} 10. Be2 {[%clk 0:02:56]} 10... Re8 {[%clk 0:02:41.2]} 11. Nh3 {[%clk
0:02:55.2]} 11... Qc7 {[%clk 0:02:32.3]} 12. Nf2 {[%clk 0:02:54.1]} 12... a6
{[%clk 0:01:27.6]} 13. a4 {[%clk 0:02:51.8]} 13... c4 {[%clk 0:01:27.9]} 14. Ra3
{[%clk 0:02:46.2]} 14... b6 {[%clk 0:01:24.4]} 15. O-O {[%clk 0:02:45.5]} 15...
Rb8 {[%clk 0:01:24.4]} 16. Rc1 {[%clk 0:02:35.1]} 16... b5 {[%clk 0:01:21.9]}
17. axb5 {[%clk 0:02:35.1]} 17... axb5 {[%clk 0:01:22.8]} 18. b4 {[%clk
0:02:34.6]} 18... h5 {[%clk 0:01:15.8]} 19. Be3 {[%clk 0:02:28.1]} 19... Ne5
{[%clk 0:01:14.5]} 20. Ra7 {[%clk 0:02:26.9]} 20... Qd8 {[%clk 0:01:14.4]} 21.
Rca1 {[%clk 0:02:14.7]} 21... Re7 {[%clk 0:01:09.2]} 22. Bd4 {[%clk 0:02:08.7]}
22... h4 {[%clk 0:00:59.9]} 23. Nfd1 {[%clk 0:02:06.1]} 23... Rxa7 {[%clk
0:00:50.7]} 24. Rxa7 {[%clk 0:02:04.4]} 24... Nh5 {[%clk 0:00:50.7]} 25. f4
{[%clk 0:01:49.3]} 25... Nd3 {[%clk 0:00:28]} 26. Bxg7 {[%clk 0:01:45]} 26...
Kxg7 {[%clk 0:00:27.9]} 27. Bxd3 {[%clk 0:01:34.8]} 27... Qb6+ {[%clk
0:00:27.8]} 28. Qf2 {[%clk 0:01:28.1]} 28... cxd3 {[%clk 0:00:22.5]} 29. Qxb6
{[%clk 0:01:15]} 29... Rxb6 {[%clk 0:00:23.4]} 30. e5 {[%clk 0:01:02.5]} 30...
dxe5 {[%clk 0:00:06.2]} 31. fxe5 {[%clk 0:01:01.9]} 31... Rb7 {[%clk 0:00:07]}
32. Ra5 {[%clk 0:00:43.8]} 32... Bd7 {[%clk 0:00:06.6]} 33. Nf2 {[%clk
0:00:40.2]} 33... Nf4 {[%clk 0:00:06.1]} 34. Kf1 {[%clk 0:00:34.3]} 34... Bf5
{[%clk 0:00:04.7]} 35. Rxb5 {[%clk 0:00:31.3]} 35... Ra7 {[%clk 0:00:02.2]} 36.
Ra5 {[%clk 0:00:30.8]} 36... Rc7 {[%clk 0:00:02.6]} 37. Rc5 {[%clk 0:00:29.9]}
37... Ra7 {[%clk 0:00:03]} 38. Ra5 {[%clk 0:00:29.5]} 38... Rc7 {[%clk
0:00:03.2]} 39. Rc5 {[%clk 0:00:25.5]} 39... Rb7 {[%clk 0:00:02.3]} 40. b5
{[%clk 0:00:23.9]} 40... Ra7 {[%clk 0:00:02.6]} 41. Nfd1 {[%clk 0:00:19.7]} 1-0

[Event "Late-Titled-Tuesday-Blitz-January-23-2024"]
[Site "Chess.com"]
[Date "2024.01.23"]
[Round "3"]
[White "pr1105"]
[Black "subham777"]
[Result "1-0"]
[WhiteElo "2311"]
[BlackElo "2540"]
[TimeControl "180+1"]
[EndTime "14:28:24 PST"]
[Termination "pr1105 won on time"]

1. e4 {[%clk 0:02:47]} 1... e6 {[%clk 0:02:59.8]} 2. d4 {[%clk 0:02:47.2]} 2...
d5 {[%clk 0:02:59.7]} 3. Nc3 {[%clk 0:02:47.8]} 3... Nf6 {[%clk 0:02:58]} 4. e5
{[%clk 0:02:48.3]} 4... Nfd7 {[%clk 0:02:53.5]} 5. f4 {[%clk 0:02:48.8]} 5... c5
{[%clk 0:02:52.2]} 6. Nf3 {[%clk 0:02:49.3]} 6... Nc6 {[%clk 0:02:52.2]} 7. Be3
{[%clk 0:02:49.8]} 7... Be7 {[%clk 0:02:52.4]} 8. Qd2 {[%clk 0:02:48.2]} 8... a6
{[%clk 0:02:52]} 9. dxc5 {[%clk 0:02:41.6]} 9... Bxc5 {[%clk 0:02:51.2]} 10.
O-O-O {[%clk 0:02:41.4]} 10... Qa5 {[%clk 0:02:50.4]} 11. Kb1 {[%clk 0:02:35]}
11... b5 {[%clk 0:02:41.3]} 12. Bd3 {[%clk 0:02:27.5]} 12... d4 {[%clk
0:02:27.5]} 13. Nxd4 {[%clk 0:01:57.4]} 13... Nxd4 {[%clk 0:02:20.7]} 14. Be4
{[%clk 0:01:57.3]} 14... b4 {[%clk 0:01:57.6]} 15. Bxd4 {[%clk 0:01:52.6]} 15...
Bxd4 {[%clk 0:01:37.8]} 16. Qxd4 {[%clk 0:01:50.7]} 16... Rb8 {[%clk 0:01:24.4]}
17. Bc6 {[%clk 0:01:44.8]} 17... O-O {[%clk 0:01:12.9]} 18. Ne4 {[%clk
0:01:31.3]} 18... Nb6 {[%clk 0:01:05]} 19. Nd6 {[%clk 0:01:20.4]} 19... Na4
{[%clk 0:00:53.7]} 20. Bxa4 {[%clk 0:01:13]} 20... Qxa4 {[%clk 0:00:51.9]} 21.
Rd3 {[%clk 0:00:54.8]} 21... Bd7 {[%clk 0:00:27.3]} 22. h4 {[%clk 0:00:45.5]}
22... Kh8 {[%clk 0:00:22.4]} 23. h5 {[%clk 0:00:44.6]} 23... Bc6 {[%clk
0:00:18.7]} 24. f5 {[%clk 0:00:32.6]} 24... Bd5 {[%clk 0:00:15]} 25. b3 {[%clk
0:00:32.3]} 25... Qc6 {[%clk 0:00:14.4]} 26. h6 {[%clk 0:00:23.1]} 26... g6
{[%clk 0:00:08.9]} 27. Rf1 {[%clk 0:00:20.7]} 27... gxf5 {[%clk 0:00:05.1]} 28.
g4 {[%clk 0:00:16.5]} 28... Be4 {[%clk 0:00:03.5]} 29. Rd2 {[%clk 0:00:07.4]}
29... Rbc8 {[%clk 0:00:03.5]} 30. gxf5 {[%clk 0:00:07.1]} 30... exf5 {[%clk
0:00:01.7]} 31. Nxf5 {[%clk 0:00:07.3]} 31... Bxf5 {[%clk 0:00:01.5]} 32. Rxf5
{[%clk 0:00:05.4]} 32... Qe6 {[%clk 0:00:02.1]} 33. Rf6 {[%clk 0:00:05.3]} 33...
Qg4 {[%clk 0:00:01.9]} 34. Qxg4 {[%clk 0:00:04.9]} 34... Rg8 {[%clk 0:00:02]}
35. Qd1 {[%clk 0:00:04.1]} 1-0

[Event "Late-Titled-Tuesday-Blitz-January-23-2024"]
[Site "Chess.com"]
[Date "2024.01.23"]
[Round "3"]
[White "emeli_chess"]
[Black "Megagigahiper3345"]
[Result "0-1"]
[WhiteElo "2459"]
[BlackElo "2668"]
[TimeControl "180+1"]
[EndTime "14:28:25 PST"]
[Termination "Megagigahiper3345 won by resignation"]

1. d4 {[%clk 0:03:00.9]} 1... Nf6 {[%clk 0:02:56.6]} 2. c4 {[%clk 0:03:00.2]}
2... g6 {[%clk 0:02:57.5]} 3. Nc3 {[%clk 0:03:00]} 3... d5 {[%clk 0:02:58.2]} 4.
Nf3 {[%clk 0:02:54.9]} 4... Bg7 {[%clk 0:02:57.6]} 5. e3 {[%clk 0:02:55.3]} 5...
O-O {[%clk 0:02:57.3]} 6. Be2 {[%clk 0:02:55.5]} 6... c6 {[%clk 0:02:50.4]} 7.
O-O {[%clk 0:02:54.6]} 7... a6 {[%clk 0:02:41.7]} 8. c5 {[%clk 0:02:54]} 8...
Bf5 {[%clk 0:02:21.2]} 9. Ne5 {[%clk 0:02:52.4]} 9... Ne8 {[%clk 0:02:15.7]} 10.
f4 {[%clk 0:02:50.7]} 10... f6 {[%clk 0:02:15.4]} 11. Nf3 {[%clk 0:02:40.5]}
11... Nd7 {[%clk 0:02:12]} 12. Bd2 {[%clk 0:02:39.2]} 12... Nc7 {[%clk
0:02:11.6]} 13. Be1 {[%clk 0:02:35.9]} 13... Kh8 {[%clk 0:02:07.4]} 14. Bh4
{[%clk 0:02:34.8]} 14... Qe8 {[%clk 0:02:07.1]} 15. b4 {[%clk 0:02:26.8]} 15...
e5 {[%clk 0:02:05.5]} 16. Qd2 {[%clk 0:02:11.7]} 16... Ne6 {[%clk 0:01:53.4]}
17. a4 {[%clk 0:01:50.8]} 17... exf4 {[%clk 0:01:36.9]} 18. exf4 {[%clk
0:01:50]} 18... Be4 {[%clk 0:01:36.6]} 19. Ra2 {[%clk 0:01:42]} 19... Bxf3
{[%clk 0:01:29.1]} 20. Bxf3 {[%clk 0:01:41.4]} 20... f5 {[%clk 0:01:29.7]} 21.
Bf2 {[%clk 0:01:39.1]} 21... Nf6 {[%clk 0:01:24.4]} 22. Re1 {[%clk 0:01:31.6]}
22... Ne4 {[%clk 0:01:22.8]} 23. Bxe4 {[%clk 0:01:26.2]} 23... fxe4 {[%clk
0:01:11]} 24. Be3 {[%clk 0:01:25.3]} 24... Qf7 {[%clk 0:01:02.5]} 25. Rf1 {[%clk
0:01:17.7]} 25... h5 {[%clk 0:00:59.6]} 26. b5 {[%clk 0:00:57.3]} 26... axb5
{[%clk 0:00:58.9]} 27. axb5 {[%clk 0:00:57.2]} 27... Rxa2 {[%clk 0:00:59.6]} 28.
Nxa2 {[%clk 0:00:57.3]} 28... Qf6 {[%clk 0:00:59.3]} 29. bxc6 {[%clk 0:00:33]}
29... bxc6 {[%clk 0:01:00.2]} 30. Nb4 {[%clk 0:00:32.9]} 30... Nxd4 {[%clk
0:00:52.3]} 31. Nxc6 {[%clk 0:00:16.5]} 31... Nxc6 {[%clk 0:00:36.7]} 32. Qxd5
{[%clk 0:00:16.5]} 32... Re8 {[%clk 0:00:34.1]} 33. h3 {[%clk 0:00:16.1]} 33...
Nd4 {[%clk 0:00:29.1]} 34. Bxd4 {[%clk 0:00:10.4]} 34... Qxd4+ {[%clk
0:00:28.9]} 35. Qxd4 {[%clk 0:00:10.8]} 35... Bxd4+ {[%clk 0:00:29.8]} 36. Kh1
{[%clk 0:00:11]} 36... Bxc5 {[%clk 0:00:30.7]} 37. f5 {[%clk 0:00:11.6]} 37...
gxf5 {[%clk 0:00:27.7]} 38. Rxf5 {[%clk 0:00:11.2]} 38... e3 {[%clk 0:00:28.2]}
39. Rxh5+ {[%clk 0:00:10.1]} 39... Kg7 {[%clk 0:00:28.6]} 40. Rxc5 {[%clk
0:00:10.2]} 40... e2 {[%clk 0:00:28.6]} 41. Rc1 {[%clk 0:00:10.2]} 41... Rd8
{[%clk 0:00:24.5]} 42. Re1 {[%clk 0:00:10.6]} 42... Rd1 {[%clk 0:00:24.1]} 43.
Kg1 {[%clk 0:00:09.9]} 43... Rxe1+ {[%clk 0:00:24.2]} 44. Kf2 {[%clk 0:00:10.8]}
44... Rg1 {[%clk 0:00:24.3]} 0-1